Cogmind - Beta 13 @@@ ROGUE MODE // 2024.04.05 @ 19:58:04 Player: mehbruh Result: Destroyed by D-53 Grenadier with Mini Grenade Launcher Performance ------------- Evolutions (0) 0 Regions Visited (2) 400 Robots Destroyed (30) 150 Value Destroyed (591) 591 Prototype IDs (2) 40 Alien Tech Used (0) 0 Bonus (0) 0 TOTAL SCORE: 1181 Bonus ------- None Cogmind --------- Core Integrity 0/250 Matter 295/300 Energy 91/100 System Corruption 0% Temperature Cool (0) Movement Treading (320) Ox2 Location -10/Mines Parts ------- > --- POWER (1) -------- (None) > --- PROPULSION (2) --- Light Treads > --- UTILITY (2) ------ High-capacity Storage Unit Light Armor Plating > --- WEAPON (2) ------- Beam Rifle Heavy Assault Rifle > --- INVENTORY (20) --- Ion Engine Light Treads Light Treads Light Treads Light Treads Compact Wheel Heat Sink Improved Heat Sink Structural Scanner Visual Processing Unit ECM Suite Small Laser Grenade Launcher Rocket Launcher Hammer Peak State ------------ > --- POWER ------------ Light Nuclear Core > --- PROPULSION ------- Light Treads Light Treads > --- UTILITY ---------- High-capacity Storage Unit Light Armor Plating > --- WEAPON ----------- Beam Rifle Heavy Assault Rifle > --- INVENTORY -------- Ion Engine Light Treads Light Treads Light Treads Light Treads Compact Wheel Heat Sink Improved Heat Sink Structural Scanner Visual Processing Unit ECM Suite Light Armor Plating Light Armor Plating Small Laser Grenade Launcher Rocket Launcher Hammer [Rating: 13] Favorites ----------- Power Light Nuclear Core Engine Ion Engine Power Core Light Nuclear Core Propulsion Light Treads Treads Light Treads Leg Aluminum Leg Wheel Wheel Utility Improved Heat Sink Device Improved Heat Sink Storage High-capacity Storage Unit Protection Light Armor Plating Weapon Medium Laser Energy Gun Medium Laser Ballistic Gun Heavy Assault Rifle Launcher Grenade Launcher Build | -11 -10 -10 ------- Run | Yrd Mat Min Slots Evolved . | . . . Power . | . . . Propulsion . | . . . Utility . | . . . Weapon . | . . . Parts Attached 30 | 4 21 5 Power 2 | 1 1 . Engine 1 | 1 . . Core 1 | . 1 . Reactor . | . . . Propulsion 10 | 2 8 . Treads 6 | 2 4 . Leg 2 | . 2 . Wheel 2 | . 2 . Hover . | . . . Flight . | . . . Utility 8 | 1 4 3 Device 2 | . 2 . Storage 3 | 1 2 . Processor . | . . . Hackware . | . . . Protection 3 | . . 3 Artifact . | . . . Weapon 10 | . 8 2 Energy Gun 7 | . 6 1 Energy Cannon . | . . . Ballistic Gun 2 | . 1 1 Ballistic Cannon . | . . . Launcher 1 | . 1 . Special Weapon . | . . . Impact Weapon . | . . . Slashing Weapon . | . . . Piercing Weapon . | . . . Special Melee Weapon . | . . . Unidentified Prototypes . | . . . Parts Lost 8 | . 4 4 Power 2 | . 1 1 Propulsion 3 | . 2 1 Utility 2 | . . 2 Weapon 1 | . 1 . Highest Loss Streak 4 | . 2 4 To Critical Strikes . | . . . Average Slot Usage (%) 97 | . 97 99 Engine 2 | . 3 . Core 11 | . 10 13 Treads 25 | . 23 28 Leg 2 | . 3 . Device 9 | . 13 3 Storage 14 | . 14 14 Protection 3 | . . 10 Energy Gun 22 | . 24 17 Ballistic Gun 5 | . 2 10 Naked Turns . | . . . Heaviest Build 54 | 10 49 54 Greatest Support 40 | 40 40 40 Greatest Overweight (x) 2 | . 2 1 Average Overweight (x) . | . . 1 Largest Inventory Capacity 20 | 8 20 20 Average Capacity 17 | 6 16 20 Most Carried 20 | 5 16 20 Average Carried 12 | 3 10 16 Final Capacity 20 | 8 20 20 Final Carried 16 | 5 16 15 Class Distribution -------------------- 81% | Scavenger-Mutant 18% | Mutant Dominant Class ---------------- Scavenger-Mutant | -10/Materials Scavenger-Mutant | -10/Mines Resources | -11 -10 -10 ----------- Run | Yrd Mat Min Matter Collected 490 | 221 239 30 Remotely . | . . . Salvage Created 836 | . 756 80 Parts 67 | . 54 13 Haulers Intercepted 2 | . 2 . Recyclers Shooed 2 | . 2 . Parts Field Recycled . | . . . Retrieved Matter . | . . . Parts Self-Destructed . | . . . Prevented . | . . . Kills | -11 -10 -10 ------- Run | Yrd Mat Min Combat Hostiles Destroyed 17 | . 11 6 Guns 16 | . 10 6 AOE 1 | . 1 . Classes Destroyed 8 | . 7 1 Worker 1 | . 1 . Builder 4 | . 4 . Hauler 2 | . 2 . Mechanic 1 | . 1 . Operator 3 | . 3 . Watcher 2 | . 2 . Swarmer 6 | . . 6 Grunt 11 | . 11 . Best Kill Streak 6 | . 6 3 Combat Bots Only 3 | . 3 3 Max Kills in Single Turn 2 | . 2 1 Gunslinging 1 | . 1 . Exploded 1 | . 1 . Melee . | . . . Uniques/NPCs Destroyed . | . . . Combat | -11 -10 -10 -------- Run | Yrd Mat Min Hostile Shots Fired 139 | . 85 54 Missed 44 | . 24 20 Damage Taken 1649 | . 784 865 Core 272 | . 96 176 Absorbed by Shields . | . . . Regen/Repaired (Parts) 119 | . 119 . Core Remaining (%) 100 | 100 . . Volleys Fired 98 | . 89 9 Largest 2 | . 2 2 Hottest 90 | . 90 90 Shots Fired 195 | . 177 18 Gun 194 | . 176 18 Cannon . | . . . Launcher 1 | . 1 . Special . | . . . Kinetic 44 | . 44 . Thermal 120 | . 102 18 Explosive 1 | . 1 . Electromagnetic 30 | . 30 . Robot Hit Streak 15 | . 15 5 Robot Miss Streak 4 | . 4 3 Penetration Max . | . . . Secondary Targets 3 | . 1 2 Max Gunslinging Chain 1 | . 1 1 Shots Hit Robots 139 | . 129 10 Core Hits 53 | . 47 6 Critical Kills . | . . . Critical Parts Destroyed . | . . . Critical Strikes 12 | . 11 1 Burn 11 | . 10 1 Corrupt 1 | . 1 . Melee Attacks . | . . . Impact . | . . . Slashing . | . . . Piercing . | . . . Sneak Attacks . | . . . Combat Hostiles . | . . . Follow-up Attacks . | . . . Damage Inflicted 1681 | . 1539 142 Guns 1622 | . 1480 142 Cannons . | . . . Explosions 40 | . 40 . Melee . | . . . Ramming 19 | . 19 . Kinetic 270 | . 270 . Thermal 1084 | . 942 142 Explosive . | . . . Electromagnetic 308 | . 308 . Impact . | . . . Slashing . | . . . Piercing . | . . . Highest Corruption . | . . . Average Corruption . | . . . Corruption Purged . | . . . Corruption Blocked . | . . . Overload Shots . | . . . Overflow Damage 19 | . 19 . Projectiles . | . . . Explosions 19 | . 19 . Melee . | . . . Knockbacks 1 | . 1 . Impact 1 | . 1 . Kinetic . | . . . Secondary . | . . . Self-Inflicted Damage 35 | . 35 . Shots 1 | . 1 . Rammed 14 | . 12 2 Targets Rammed 16 | . 14 2 Kicked 2 | . 2 . Crushed . | . . . Highest Temperature 42 | . 42 . Average Temperature 13 | . 13 . Received Heat Transfer 465 | . 456 9 Siege Activations . | . . . Robots Corrupted . | . . . Combat Hostiles . | . . . Parts Fried . | . . . Impact Corruptions . | . . . Robots Melted . | . . . Combat Hostiles . | . . . Parts Melted 6 | . 6 . Heat Transferred 3856 | . 3422 434 Parts Sabotaged . | . . . Parts Stolen . | . . . Parts Stripped . | . . . Power Chain Reactions 1 | . 1 . Alert | -11 -10 -10 ------- Run | Yrd Mat Min Peak Influence 259 | . 259 170 Initial . | . . . Average 78 | . 93 55 Maximum Alert Level 1 | . 1 . Low Security (%) 92 | 100 88 100 Level 1 7 | . 11 . Level 2 . | . . . Level 3 . | . . . Level 4 . | . . . Level 5 . | . . . High Security . | . . . Max Security . | . . . Squads Dispatched 3 | . 3 . Investigation . | . . . Extermination . | . . . Reinforcement 3 | . 3 . Assault . | . . . Garrison . | . . . Intercept . | . . . Searches Triggered . | . . . Construction Impeded . | . . . Haulers Reinforced . | . . . Active Scanning Responses . | . . . Cargo Convoy Interrupts . | . . . Stealth | -11 -10 -10 --------- Run | Yrd Mat Min Distress Signals 2 | . 2 . Communications Jammed . | . . . Distress Signals . | . . . Times Spotted 44 | . 28 16 Peak Tracking Total 7 | . 5 7 Tactical Retreats 2 | . 2 . Traps | -11 -10 -10 ------- Run | Yrd Mat Min Traps Triggered 1 | . 1 . Indirectly . | . . . Trap Hack Attempts . | . . . Triggered . | . . . Disarmed . | . . . Reprogrammed . | . . . Reused . | . . . Traps Extracted . | . . . Installed . | . . . Triggered . | . . . Machines | -11 -10 -10 ---------- Run | Yrd Mat Min Machines Disabled . | . . . Max in Single Turn . | . . . Machines Repaired . | . . . Machines Dismantled . | . . . Machines Sabotaged . | . . . Overloaded Fab Kills . | . . . Hacking | -11 -10 -10 --------- Run | Yrd Mat Min Machines Accessed 6 | . 6 . Terminals 5 | . 5 . Fabricators . | . . . Repair Stations 1 | . 1 . Recycling Units . | . . . Scanalyzers . | . . . Garrison Access . | . . . Total Hacks 17 | . 17 . Successful 6 | . 6 . Failed 11 | . 11 . Catastrophic 2 | . 2 . Database Lockouts . | . . . Manual 6 | . 6 . Terminals 15 | . 15 . Fabricators . | . . . Repair Stations 2 | . 2 . Recycling Units . | . . . Scanalyzers . | . . . Garrison Access . | . . . Terminal Hacks 4 | . 4 . Prototype ID Bank 1 | . 1 . Emergency Access Points 1 | . 1 . Locate Traps 1 | . 1 . Hauler Manifests 1 | . 1 . Fabricator Hacks . | . . . Repair Station Hacks 2 | . 2 . Scan Component 1 | . 1 . Repair 1 | . 1 . Recycling Unit Hacks . | . . . Scanalyzer . | . . . Garrison Access Hacks . | . . . Unauthorized Hacks . | . . . Terminals . | . . . Fabricators . | . . . Repair Stations . | . . . Recycling Units . | . . . Scanalyzers . | . . . Garrison Access . | . . . Data Cores Recovered . | . . . Used . | . . . Hacking Detections 6 | . 6 . Full Trace Events . | . . . Feedback Events . | . . . Feedback Blocked . | . . . Robot Schematics Acquired . | . . . Robots Built . | . . . Authchips . | . . . Time . | . . . Total Robot Build Rating . | . . . Part Schematics Acquired . | . . . Parts Built . | . . . Authchips . | . . . Time . | . . . Total Part Build Rating . | . . . Parts Repaired 1 | . 1 . Time 26 | . 26 . Parts Recycled . | . . . Recycled Matter . | . . . Retrieved Matter . | . . . Retrieved Components . | . . . Parts Scanalyzed . | . . . Part Schematics Acquired . | . . . Parts Damaged . | . . . Bothacking | -11 -10 -10 ------------ Run | Yrd Mat Min Used RIF Installer . | . . . Robots Hacked . | . . . Non-combat . | . . . Combat . | . . . Robot Hacks Applied . | . . . Relay Couplers Released . | . . . Fabnet Peak Effective % . | . . . Robots Rewired . | . . . Allies Hacked . | . . . Hacks Repelled . | . . . Allies | -11 -10 -10 -------- Run | Yrd Mat Min Total Allies . | . . . Largest Group . | . . . Highest-Rated Group . | . . . Highest-Rated Ally . | . . . Total Orders . | . . . Ally Attacks . | . . . Total Damage . | . . . Kills . | . . . Allies Corrupted . | . . . Allies Melted . | . . . Intel | -11 -10 -10 ------- Run | Yrd Mat Min Robot Analysis Total . | . . . Derelict Logs Recovered 1 | . . 1 Drone Launches . | . . . Drone Recoveries . | . . . Exploration | -11 -10 -10 ------------- Run | Yrd Mat Min Turns Passed 2935 | 77 1862 996 Spaces Moved 1223 | 44 795 384 Core 5 | 5 . . Treads 1119 | 39 696 384 Legs 95 | . 95 . Wheels 4 | . 4 . Hover . | . . . Flight . | . . . Fastest Speed 50 | 50 95 240 Average Speed 199 | 147 183 240 Slowest Speed 240 | 160 240 240 Overloaded Moves . | . . . Propulsion Burnouts . | . . . Robots Hopped . | . . . Cave-ins Triggered . | . . . Exploration Rate (%) 62 | 4 95 88 Regions Visited 2 Branch Regions 1 Pre-discovered Areas . | . . . Known Exits Taken . | . . . Unknown Exits Taken 2 | 1 1 . Scrap Searched 1 | . . 1 Spaces Dug 7 | . 7 . Terrain Destroyed 10 | . 10 . Melee . | . . . Projectile . | . . . AOE 10 | . 10 . Terrain Rammed . | . . . Walls Destroyed . | . . . Machines Disabled . | . . . Actions | -11 -10 -10 --------- Run | Yrd Mat Min Total 1520 | 56 1023 441 Wait 90 | . 66 24 Move 1221 | 43 794 384 Hop . | . . . Pick Up 47 | 9 29 9 Fast Attach . | . . . Attach 19 | 4 11 4 Detach 1 | . 1 . Swap 11 | . 10 1 Drop 17 | . 9 8 Fire 98 | . 89 9 Melee . | . . . Ram . | . . . Kick 2 | . 2 . Crush 14 | . 12 2 Escape Stasis . | . . . Rewire . | . . . Trap . | . . . Miscellaneous . | . . . Route ------- -11/Scrapyard -10/Materials (discovered 4 exits: [*Mat x3] / [*Min]) -10/Mines (discovered 2 exits: [*Mat x2]) History --------- Turn | Location | Event 23 | -11/Scrapyard | Discovered new exit (range 16) 78 | -11/Scrapyard | Entered Materials 307 | -10/Materials | Build established: Mutant 331 | -10/Materials | Discovered new exit (range 16) 865 | -10/Materials | Build established: Scavenger-Mutant 904 | -10/Materials | Discovered new exit (range 14) 1167 | -10/Materials | Discovered new exit (range 12) 1409 | -10/Materials | Repaired Lgt. Treads 1589 | -10/Materials | Discovered new exit (range 10) 1940 | -10/Materials | Entered Mines 2145 | -10/Mines | Joined a pair of Derelicts in attacking an 0b10 outpost 2257 | -10/Mines | Learned Materials stockpile data 2394 | -10/Mines | Received a Rocket Launcher from a helpful Derelict 2457 | -10/Mines | Discovered new exit (range 10) 2776 | -10/Mines | Discovered new exit (range 7) 2897 | -10/Mines | Assembled infested the area 2902 | -10/Mines | Assisted by a Guerilla fighting off Assembled 2925 | -10/Mines | Core integrity fell below 50% 2931 | -10/Mines | Core integrity fell below 20% 2936 | -10/Mines | Destroyed by D-53 Grenadier with Mini Grenade Launcher Last Messages --------------- to get out of here! I've been tracking a group of Assembled to figure out where they're coming from, and they're closing on this area, come on!" C-30 ARC bursts open, deploying its payload. D-53 Grenadier unfolds itself. U-05 Engineer builds a Wall. Lgt. Armor Plating destroyed. U-05 Engineer destroyed. as-03469 destroyed. as-83201 destroyed. The unstable cave ceiling collapses. Lgt. Nuclear Core destroyed. Lgt. Armor Plating destroyed. The unstable cave ceiling collapses. U-05 Engineer lays Concrete. Core Extractor disabled. U-05 Engineer builds a Wall. Lgt. Treads destroyed. as-15072 destroyed. Map ----- +----------------------------------------------------+ | ??# """ #???# """ """ #?????????? | | ??# """ ## #???# """ """ #???###???? | | ??## ## #???# """ """ #??# ##??? | | ??## ###!#???# ### #??? | | ### ##?#%#???##### ###### #??? | | ## ##??#!#???????# #? ##?? | | ## #???#[#???????# ## #? #?? | | ### #???# #???????# ## #?# #?? | | ??# #???# ######### ## ### ##? | | ??## ##???# ## ## #? | | ???# ##????# ########### #? | | ???# #?????# #????????# #?? | | #### #?????# #????????# #??? | | #?????# #????????## #??? | | #?????# #?????????## #??? | | ## ##?????# #?????????## ##??? | | ### ######## #????????## ##???? | | #?# ## #####????# """ #????? | | ??## #### ## ## ##???# """ ##???? | | ???# #?????# ##??# "" ##??? | | ??## #??# ## #?## d #??? | | ?## ##?# ### %d #??? | | ?# #?##### ## #??? | | ?# ##????## ## #???? | | ?# ###???# # ##??? | | ## ##??## u @ #??? | | # """ #???#### % ##?? | | """ ##?????## ##? | | """ #??????#### #? | | #?????????## a #? | | # ### ##?????????### # #? | | ####??# #######????## # a #? | | ??????# #???## #? | | #???### ##### #??## a ##? | | #??## ##?# #### % #?? | | #??# #?# #?? | | #??# #?###### #?? | | #### ##??????## """ #?? | | ## ##????????## """ #?? | | ##?????????## """ ##?? | | ##?????????## #??? | | #??????????# #??? | | #??????????# #??? | | ### ##??????????## ## #??? | | ##??##????????????######?# #??? | | #????????????????????????? #??? | | # ##????????????????????????? #??? | | #####?????????????????????????? ##??? | | ?????????????????? #???????????? #???? | | ??????????????? #????????????? ????? | +----------------------------------------------------+ Best States ------------- Heat Dissipation 39 Energy Generation 14 Energy Capacity 250 Matter Stores 300 Matter Capacity 300 Sight Range 16 Terrain Scan Density 10 Armor Coverage 150 Evasion (%) 40 Recoil Reduction 2 Item Schematics ----------------- None Robot Schematics ------------------ None Fabricated ------------ Nothing Alien Tech Used ----------------- None Achievements -------------- None Challenges ------------ None Game ------ Seed TargetRelayRailgun Manual? 0 Play Time 00:20:03 Cumulative 20.1 hours Start 2024.04.05 @ 19:38:39 End 2024.04.05 @ 19:58:04 Sessions 1 Manual Loads 0 Difficulty Rogue Special Mode None Game No. 12 Rogue 12 Adventurer 0 Explorer 0 Win Type - Total 1 Types 1/0/0/0/0/0/0/0/0 Lore% 19 Gallery% 21 Achievement% 23 Wizard Run 0 Options --------- Layout 1 ASCII 0 Keyboard 0 Movement Arrows Keybinds 0 Fullscreen 1 Font 24/Smallcaps Map View 50x35 Zoom Use 0% Tactical HUD 0 Map Filters NONE Filters NONE Steam 1 RUN: 9978594e-d753-4e16-ac29-4742af0b5a48